fUSD/lending_fUSD_20250630
["ID","MTS","AMOUNT","RATE_DAILY","PERIOD"]
[368664608,1751281839639,-490.0,0.00014282,2]
[368664610,1751281839649,-490.0,0.00014282,2]
[368664612,1751281839658,-1880.63,0.00014282,2]
[368664614,1751281839668,-1000.0,0.00014282,2]
[368664616,1751281839677,-490.0,0.00014282,2]
[368664618,1751281839687,-2754.39,0.00014282,2]
[368664620,1751281839696,-490.0,0.00014282,2]
[368664622,1751281839706,-151.0,0.00014282,2]
[368664624,1751281839715,-179.621972,0.00014282,2]
[368664626,1751281839724,-490.0,0.00014282,2]
[368664628,1751281839733,-500.0,0.00014282,2]
[368664629,1751281839742,-552.12,0.00014282,2]
[368664631,1751281839752,-500.0,0.00014282,2]
[368664633,1751281839761,-282.88384397,0.00014282,2]
[368664635,1751281839771,-503.21353234,0.00014282,2]
[368664637,1751281839780,-490.0,0.00014282,2]
[368664639,1751281839789,-151.0,0.00014282,2]
[368664640,1751281839798,-151.0,0.00014282,2]
[368664641,1751281839807,-151.0,0.00014282,2]
[368664642,1751281839816,-151.0,0.00014282,2]
[368664643,1751281839825,-1484.72,0.00014282,2]
[368664644,1751281839833,-715.89,0.00014282,2]
[368664645,1751281839843,-490.0,0.00014282,2]
[368664646,1751281839851,-610.96,0.00014282,2]
[368664647,1751281839862,-490.0,0.00014282,2]
[368664648,1751281839871,-576.55,0.00014282,2]
[368664649,1751281839885,-490.0,0.00014282,2]
[368664650,1751281839894,-3261.05,0.00014282,2]
[368664651,1751281839903,-608.52,0.00014282,2]
[368664652,1751281839913,-1377.86,0.00014282,2]
[368664653,1751281839922,-1025.72,0.00014282,2]
[368664654,1751281839931,-1466.09,0.00014282,2]
[368664656,1751281839941,-1337.21,0.00014282,2]
[368664658,1751281839950,-621.19,0.00014282,2]
[368664660,1751281839960,-1403.76,0.00014282,2]
[368664662,1751281839969,-1999.26,0.00014282,2]
[368664664,1751281839979,-490.0,0.00014282,2]
[368664666,1751281839988,-490.0,0.00014282,2]
[368664668,1751281839998,-151.0,0.00014282,2]
[368664670,1751281840008,-151.0,0.00014282,2]
[368664672,1751281840018,-151.0,0.00014282,2]
[368664674,1751281840028,-490.0,0.00014282,2]
[368664676,1751281840038,-1170.32,0.00014282,2]
[368664678,1751281840047,-496.9660629,0.00014282,2]
[368664680,1751281840057,-1814.29,0.00014282,2]
[368664682,1751281840066,-909.49,0.00014282,2]
[368664684,1751281840076,-1402.25,0.00014282,2]
[368664686,1751281840085,-490.0,0.00014282,2]
[368664689,1751281840095,-1667.96,0.00014282,2]
[368664691,1751281840104,-490.0,0.00014282,2]
[368664693,1751281840118,-1157.24,0.00014282,2]
[368664695,1751281840127,-1730.43,0.00014282,2]
[368664697,1751281840137,-490.0,0.00014282,2]
[368664699,1751281840146,-5229.3,0.00014282,2]
[368664701,1751281840156,-490.0,0.00014282,2]
[368664703,1751281840165,-1131.09,0.00014282,2]
[368664705,1751281840175,-490.0,0.00014282,2]
[368664707,1751281840184,-151.0,0.00014282,2]
[368664709,1751281840193,-151.0,0.00014282,2]
[368664711,1751281840203,-151.0,0.00014282,2]
[368664713,1751281840212,-1292.53,0.00014282,2]
[368664715,1751281840223,-490.0,0.00014282,2]
[368664717,1751281840233,-490.0,0.00014282,2]
[368664719,1751281840242,-207.77,0.00014282,2]
[368664721,1751281840252,-521.67,0.00014282,2]
[368664723,1751281840261,-538.665938,0.00014282,2]
[368664725,1751281840270,-538.665938,0.00014282,2]
[368664727,1751281840279,-538.665938,0.00014282,2]
[368664729,1751281840289,-538.665938,0.00014282,2]
[368664731,1751281840299,-538.665938,0.00014282,2]
[368664733,1751281840308,-538.665938,0.00014282,2]
[368664735,1751281840319,-569.53,0.00014282,2]
[368664737,1751281840327,-490.0,0.00014282,2]
[368664739,1751281840337,-3186.65,0.00014282,2]
[368664741,1751281840347,-490.0,0.00014282,2]
[368664743,1751281840356,-852.66,0.00014282,2]
[368664745,1751281840366,-8856.83,0.00014282,2]
[368664747,1751281840376,-1988.96,0.00014282,2]
[368664749,1751281840385,-938.27,0.00014282,2]
[368664751,1751281840394,-1232.18,0.00014282,2]
[368664753,1751281840403,-169.375602,0.00014282,2]
[368664755,1751281840412,-1638.59,0.00014282,2]
[368664757,1751281840422,-151.0,0.00014282,2]
[368664759,1751281840432,-151.0,0.00014282,2]
[368664761,1751281840441,-638.65,0.00014282,2]
[368664763,1751281840451,-572.29,0.00014282,2]
[368664765,1751281840462,-4292.19963255,0.00014282,2]
[368664852,1751281841891,-151.0,0.00014282,2]
[368664853,1751281841901,-151.0,0.00014282,2]
[368664854,1751281841911,-20.83,0.00014282,2]
[368664910,1751281844084,-130.17,0.00014282,2]
[368664911,1751281844093,-210.440574,0.00014282,2]
[368664913,1751281844102,-5538.04832971,0.00014282,2]
[368665145,1751281846589,-196.816046,0.00014282,2]
[368665147,1751281846598,-191.21291045,0.00014282,2]
[368665149,1751281846608,-42.77104355,0.00014282,2]
[368665289,1751281848923,434.7,0.00013368,2]
[368665290,1751281886056,1011.68,0.00027397,120]
[368665291,1751281888410,1125.55645051,0.00013997,2]
[368665292,1751281888432,310.01654949,0.00013997,2]
[368665293,1751281888570,225.538,0.00013997,2]
[368665294,1751282042703,9464.44545051,0.00013215,2]
[368665295,1751282042724,4679.00454949,0.00013215,2]
[368665297,1751282209256,167.67,0.00013612,2]
[368665298,1751282214021,269.45,0.00013699,2]
[368665299,1751282277705,814.86,0.00013202,2]
[368665300,1751282317193,1000.0,0.00013201,2]
[368665301,1751282331574,200.0,0.00013201,2]
[368665302,1751282395441,2869.01545051,0.00013202,2]
[368665303,1751282395464,10000.0,0.00013202,2]
[368665304,1751282395486,7663.89454949,0.00013202,2]
[368665308,1751282398680,534.0,0.00013483,2]
[368665309,1751282486500,1802.10545051,0.00013219,2]
[368665310,1751282486522,1423.66454949,0.00013219,2]
[368665313,1751282535066,250.0,0.00013205,2]
[368665314,1751282609534,150.0,0.00014085,2]
[368665315,1751282609575,150.0,0.00014093,2]
[368665316,1751282609611,150.0,0.00014052,2]
[368665317,1751282609639,150.0,0.00014028,2]
[368665318,1751282609695,150.0,0.00014083,2]
[368665319,1751282609804,150.0,0.00014085,2]
[368665320,1751282609972,150.0,0.00014082,2]
[368665321,1751282610147,150.0,0.00014066,2]
[368665322,1751282610176,150.0,0.00014089,2]
[368665323,1751282610221,150.0,0.00014091,2]
[368665324,1751282610261,150.0,0.00014045,2]
[368665325,1751282610303,150.0,0.0001406,2]
[368665326,1751282610593,150.0,0.00014064,2]
[368665327,1751282620146,300.0,0.00027397,120]
[368665328,1751282639346,518.0,0.00013483,2]
[368665329,1751282652137,150.0,0.00014032,2]
[368665331,1751282842617,500.0,0.00013198,2]
[368665332,1751282887237,1000.0,0.00014074,2]
[368665333,1751282887299,1000.0,0.00014069,2]
[368665334,1751282887335,1000.0,0.00014077,2]
[368665335,1751282887374,1000.0,0.00014039,2]
[368665336,1751282887464,1000.0,0.00014013,2]
[368665337,1751282887525,208.33545051,0.00014029,2]
[368665338,1751282887546,791.66454949,0.00014029,2]
[368665339,1751282887678,1000.0,0.00014074,2]
[368665340,1751282891690,196.83104349,0.000211,90]
[368665341,1751282897317,163.04,0.00013207,2]
[368665342,1751282898552,-468.00634,0.00018,30]
[368665343,1751282898572,-468.00634,0.00018,30]
[368665344,1751282898593,-468.00634,0.00018,30]
[368665345,1751282898613,-468.00634,0.00018,30]
[368665346,1751282898634,-468.00638,0.00018,30]
[368665347,1751282898654,-150.0,0.00018,30]
[368665348,1751282898677,-274.00361,0.00018,30]
[368665349,1751282899313,-159.79517477,0.0002,30]
[368665350,1751282899428,-541.84230808,0.000209,30]
[368665351,1751282899451,-200.0,0.00021753,30]
[368665352,1751282899476,-200.0,0.00022001,30]
[368665353,1751282905342,513.92,0.00013208,2]
[368665354,1751282911141,167.41,0.00013198,2]
[368665355,1751282974772,155.11,0.00013203,2]
[368665356,1751282975021,155.11,0.00013208,2]
[368665357,1751282975176,155.11,0.00013212,2]
[368665358,1751282975388,155.11,0.00013216,2]
[368665359,1751282975579,155.11,0.0001322,2]
[368665360,1751282975766,155.11,0.00013224,2]
[368665361,1751282975961,155.11,0.00013228,2]
[368665362,1751282976200,155.11,0.00013232,2]
[368665363,1751282976339,155.11,0.00013236,2]
[368665364,1751282976545,155.11,0.00013241,2]
[368665365,1751282976765,155.11,0.00013245,2]
[368665366,1751282976966,155.11,0.00013249,2]
[368665367,1751282977167,155.11,0.00013253,2]
[368665368,1751282977387,155.11,0.00013257,2]
[368665369,1751282977572,155.11,0.00013261,2]
[368665370,1751282978059,155.11,0.00013265,2]
[368665371,1751282978222,155.11,0.0001327,2]
[368665372,1751283022401,552.80707,0.00018001,29]
[368665373,1751283022485,552.80707,0.00018001,29]
[368665374,1751283023266,552.80707,0.00018001,29]
[368665375,1751283023509,552.80707,0.00018001,29]
[368665376,1751283024329,552.80707,0.00018001,29]
[368665383,1751283031492,-585.88327243,0.00014113,2]
[368665387,1751283031547,-26.75238257,0.00014113,2]
[368665388,1751283031557,-1000.0,0.00014114,4]
[368665389,1751283031567,-1000.0,0.00014118,4]
[368665390,1751283031578,-150.0,0.00014121,2]
[368665391,1751283031587,-150.0,0.00014122,2]
[368665392,1751283031596,-150.0,0.0001413,2]
[368665393,1751283031608,-207.4,0.0001413,2]
[368665394,1751283031617,-150.0,0.00014136,2]
[368665395,1751283031626,-1200.0,0.00014138,2]
[368665396,1751283031636,-500.0,0.00014139,2]
[368665397,1751283031645,-500.0,0.00014139,2]
[368665398,1751283031654,-313.344345,0.00014139,2]
[368665410,1751283032017,-186.655655,0.00014139,2]
[368665411,1751283032027,-183.61651521,0.00014139,2]
[368665412,1751283032058,-316.38348479,0.00014139,2]
[368665413,1751283032068,-500.0,0.00014139,2]
[368665414,1751283032078,-500.0,0.00014139,2]
[368665415,1751283032087,-150.0,0.00014139,2]
[368665416,1751283032096,-36.00682031,0.00014139,2]
[368665417,1751283032107,-265.99317969,0.00014139,2]
[368665418,1751283032117,-300.0,0.0001414,2]
[368665419,1751283032127,-102.03682031,0.0001414,2]
[368665420,1751283032146,-550.72014969,0.0001414,2]
[368665421,1751283032156,-150.0,0.00014144,2]
[368665422,1751283032165,-150.0,0.0001415,2]
[368665423,1751283032175,-150.0,0.00014157,2]
[368665424,1751283032184,-48.0893958,0.00014158,2]
[368665425,1751283032241,-101.9106042,0.00014158,2]
[368665426,1751283032251,-150.0,0.0001416,2]
[368665427,1751283032260,-1000.0,0.00014162,2]
[368665428,1751283032270,-173.51377856,0.00014172,2]
[368665429,1751283032279,-496.76561724,0.00014172,2]
[368665430,1751283038068,-635.49944617,0.00014172,2]
[368665575,1751283040645,-104.14366479,0.00014172,2]
[368665576,1751283040654,-159.35053402,0.00014172,2]
[368665577,1751283040664,-976.44250342,0.00014172,2]
[368665578,1751283040675,-603.02999999,0.00014172,2]
[368665579,1751283040687,-1379.98240948,0.00014172,2]
[368665580,1751283040695,-497.49859095,0.00014172,2]
[368665583,1751283042807,-738.91013707,0.00014172,2]
[368665584,1751283042816,-5000.0,0.00014173,2]
[368665585,1751283042825,-1236.40872802,0.00014173,2]
[368665586,1751283042835,-192.39710005,0.00014173,2]
[368665587,1751283042844,-1236.40872802,0.00014173,2]
[368665588,1751283042856,-1236.40872802,0.00014174,2]
[368665589,1751283042865,-1236.40872802,0.00014174,2]
[368665590,1751283042875,-1236.40872802,0.00014175,2]
[368665591,1751283042884,-1236.40872802,0.00014175,2]
[368665592,1751283042894,-1236.40872802,0.00014176,2]
[368665593,1751283042903,-1236.40872802,0.00014176,2]
[368665594,1751283042913,-1236.40872802,0.00014177,2]
[368665596,1751283042922,-1236.40872802,0.00014177,2]
[368665598,1751283042932,-1236.40872802,0.00014178,2]
[368665600,1751283042941,-1236.40872802,0.00014178,2]
[368665601,1751283042951,-1236.40872802,0.00014179,2]
[368665602,1751283042960,-1236.40872802,0.00014179,2]
[368665603,1751283042970,-1236.40872802,0.0001418,2]
[368665604,1751283042980,-1236.40872802,0.0001418,2]
[368665605,1751283042989,-1236.40872802,0.00014181,2]
[368665606,1751283042999,-393.64817744,0.00014181,2]
[368665607,1751283043009,-4369.76147175,0.00014181,2]
[368665608,1751283043019,-1236.40872802,0.00014181,2]
[368665610,1751283043029,-183.53716159,0.00014182,2]
[368665611,1751283043038,-8688.4134,0.00014182,2]
[368665612,1751283043048,-300.0,0.00014186,2]
[368665613,1751283043057,-150.0,0.00014186,2]
[368665614,1751283043067,-150.0,0.0001419,2]
[368665615,1751283043076,-300.0,0.00014194,2]
[368665616,1751283043087,-1372.0,0.000142,2]
[368665617,1751283043096,-150.0,0.00014201,2]
[368665618,1751283043106,-150.0,0.00014204,2]
[368665619,1751283043116,-150.0,0.00014206,2]
[368665620,1751283043125,-150.0,0.00014207,2]
[368665621,1751283043134,-150.0,0.00014214,2]
[368665622,1751283043143,-1000.0,0.00014214,2]
[368665623,1751283043153,-150.0,0.00014215,2]
[368665624,1751283043162,-173.51377852,0.00014218,2]
[368665625,1751283043171,-150.0,0.00014218,2]
[368665626,1751283043180,-150.0,0.00014224,2]
[368665627,1751283043190,-150.0,0.00014224,2]
[368665628,1751283043199,-150.0,0.00014229,2]
[368665629,1751283043208,-150.0,0.00014233,2]
[368665630,1751283043218,-150.0,0.00014236,2]
[368665631,1751283043227,-150.0,0.00014242,2]
[368665632,1751283043237,-1000.0,0.00014246,2]
[368665633,1751283043247,-1000.0,0.00014246,2]
[368665634,1751283043258,-503.0,0.00014247,2]
[368665635,1751283043268,-1285.0,0.00014247,2]
[368665636,1751283043277,-150.0,0.00014247,2]
[368665637,1751283043288,-156.466168,0.00014249,2]
[368665638,1751283043297,-20.99550122,0.00014249,2]
[368665905,1751283171410,1455.86,0.00013699,2]
[368665906,1751283191828,3071.81,0.00013283,2]
[368665908,1751283233147,199.42545051,0.00013699,2]
[368665909,1751283233168,56.54454949,0.00013699,2]
[368665910,1751283324116,446.39,0.0001327,2]
[368665911,1751283454407,457.627228,0.000137,2]
[368665912,1751283530771,1000.0,0.00013272,2]
[368665917,1751283839075,508.0,0.00013359,2]
[368665919,1751283899592,334.21,0.00013271,2]
[368665921,1751283950123,4810.0,0.00027397,120]
[368665922,1751283959341,180.81,0.00013271,2]
[368665923,1751284007267,591.24871271,0.00027397,120]
[368665925,1751284114133,7016.41822251,0.00014,2]
[368665926,1751284114154,10000.0,0.00014,2]
[368665927,1751284114176,10000.0,0.00014,2]
[368665928,1751284114200,10000.0,0.00014,2]
[368665929,1751284114222,10000.0,0.00014,2]
[368665930,1751284114244,10000.0,0.00014,2]
[368665931,1751284114267,10000.0,0.00014,2]
[368665932,1751284114288,10000.0,0.00014,2]
[368665933,1751284114309,10000.0,0.00014,2]
[368665934,1751284114333,10000.0,0.00014,2]
[368665935,1751284114356,10000.0,0.00014,2]
[368665936,1751284114379,10000.0,0.00014,2]
[368665937,1751284114401,1356.59309797,0.00014,2]
[368665941,1751284144059,8643.40690203,0.00014,2]
[368665942,1751284144081,10000.0,0.00014,2]
[368665943,1751284144103,10000.0,0.00014,2]
[368665944,1751284144124,10000.0,0.00014,2]
[368665945,1751284144146,10000.0,0.00014,2]
[368665946,1751284144168,10000.0,0.00014,2]
[368665947,1751284144195,10000.0,0.00014,2]
[368665948,1751284144220,10000.0,0.00014,2]
[368665949,1751284144243,10000.0,0.00014,2]
[368665950,1751284144266,10000.0,0.00014,2]
[368665951,1751284144290,10000.0,0.00014,2]
[368665952,1751284144312,10000.0,0.00014,2]
[368665953,1751284144333,10000.0,0.00014,2]
[368665954,1751284144355,10000.0,0.00014,2]
[368665955,1751284144375,10000.0,0.00014,2]
[368665956,1751284144397,10000.0,0.00014,2]
[368665957,1751284144419,10000.0,0.00014,2]
[368665958,1751284144439,10000.0,0.00014,2]
[368665959,1751284144460,10000.0,0.00014,2]
[368665960,1751284144481,10000.0,0.00014,2]
[368665961,1751284144502,10000.0,0.00014,2]
[368665962,1751284144523,10000.0,0.00014,2]
[368665963,1751284144544,10000.0,0.00014,2]
[368665964,1751284144564,10000.0,0.00014,2]
[368665965,1751284144584,10000.0,0.00014,2]
[368665966,1751284144604,10000.0,0.00014,2]
[368665967,1751284144625,10000.0,0.00014,2]
[368665968,1751284144646,10000.0,0.00014,2]
[368665969,1751284144667,10000.0,0.00014,2]
[368665970,1751284144689,10000.0,0.00014,2]
[368665971,1751284144710,10000.0,0.00014,2]
[368665972,1751284144730,10000.0,0.00014,2]
[368665973,1751284144750,10000.0,0.00014,2]
[368665974,1751284144773,10000.0,0.00014,2]
[368665975,1751284144796,10000.0,0.00014,2]
[368665976,1751284144817,10000.0,0.00014,2]
[368665977,1751284144838,10000.0,0.00014,2]
[368665978,1751284144858,10000.0,0.00014,2]
[368665979,1751284144879,10000.0,0.00014,2]
[368665980,1751284144900,10000.0,0.00014,2]
[368665981,1751284144921,10000.0,0.00014,2]
[368665982,1751284144942,10000.0,0.00014,2]
[368665983,1751284144963,10000.0,0.00014,2]
[368665984,1751284144983,10000.0,0.00014,2]
[368665985,1751284145005,10000.0,0.00014,2]
[368665986,1751284145027,10000.0,0.00014,2]
[368665987,1751284145049,10000.0,0.00014,2]
[368665988,1751284145070,10000.0,0.00014,2]
[368665989,1751284145090,10000.0,0.00014,2]
[368665990,1751284145111,10000.0,0.00014,2]
[368665991,1751284145133,10000.0,0.00014,2]
[368665992,1751284145153,10000.0,0.00014,2]
[368665993,1751284145173,10000.0,0.00014,2]
[368665994,1751284145196,10000.0,0.00014,2]
[368665995,1751284145216,10000.0,0.00014,2]
[368665996,1751284145239,10000.0,0.00014,2]
[368665997,1751284145260,10000.0,0.00014,2]
[368665998,1751284145283,10000.0,0.00014,2]
[368665999,1751284145305,10000.0,0.00014,2]
[368666000,1751284145327,10000.0,0.00014,2]
[368666001,1751284145348,10000.0,0.00014,2]
[368666002,1751284145370,10000.0,0.00014,2]
[368666003,1751284145393,10000.0,0.00014,2]
[368666004,1751284145415,10000.0,0.00014,2]
[368666005,1751284145435,10000.0,0.00014,2]
[368666006,1751284145456,10000.0,0.00014,2]
[368666007,1751284145477,10000.0,0.00014,2]
[368666008,1751284145497,10000.0,0.00014,2]
[368666009,1751284145519,10000.0,0.00014,2]
[368666010,1751284145542,10000.0,0.00014,2]
[368666011,1751284145563,10000.0,0.00014,2]
[368666012,1751284145584,10000.0,0.00014,2]
[368666013,1751284145604,10000.0,0.00014,2]
[368666014,1751284145624,10000.0,0.00014,2]
[368666015,1751284145644,10000.0,0.00014,2]
[368666016,1751284145670,456175.96209481,0.00014,2]
[368666024,1751284231728,-320.04246613,0.00014102,2]
[368666025,1751284231758,-750.81041459,0.00014102,2]
[368666037,1751284237790,-31621.14711928,0.00014102,2]
[368666038,1751284237800,-3263.78485,0.0001411,2]
[368666039,1751284237809,-272.0,0.00014124,2]
[368666040,1751284237819,-200.0,0.00014135,2]
[368666041,1751284237828,-207.4,0.00014159,2]
[368666042,1751284237838,-168.3474625,0.00014169,2]
[368666043,1751284237847,-5000.0,0.0001417,2]
[368666044,1751284237857,-536.056198,0.00014171,2]
[368666045,1751284237866,-183.53716159,0.00014171,2]
[368666046,1751284237876,-337.41272352,0.00014171,2]
[368666047,1751284237886,-500.0,0.00014249,2]
[368666048,1751284237896,-500.0,0.00014249,2]
[368666049,1751284237905,-500.0,0.00014249,2]
[368666050,1751284237914,-500.0,0.00014249,2]
[368666051,1751284237924,-500.0,0.00014249,2]
[368666052,1751284237934,-551.26946156,0.00014249,2]
[368666053,1751284237943,-151.66,0.00014258,2]
[368666054,1751284237953,-1422.85,0.00014268,2]
[368666055,1751284237962,-1068.77,0.00014268,2]
[368666056,1751284237971,-3125.17,0.00014268,2]
[368666057,1751284237980,-1054.73,0.00014268,2]
[368666058,1751284237990,-514.41,0.00014268,2]
[368666059,1751284238000,-1121.56,0.00014268,2]
[368666060,1751284238009,-638.16,0.00014268,2]
[368666061,1751284238018,-1109.02,0.00014268,2]
[368666062,1751284238028,-151.0,0.00014268,2]
[368666063,1751284238037,-5011.42,0.00014268,2]
[368666064,1751284238046,-1238.67,0.00014268,2]
[368666066,1751284238057,-489.820662,0.00014268,2]
[368666068,1751284238067,-284.37159381,0.00014268,2]
[368666070,1751284238076,-1180.84,0.00014268,2]
[368666072,1751284238086,-489.820662,0.00014268,2]
[368666074,1751284238095,-508.52713789,0.00014268,2]
[368666075,1751284238106,-1337.17,0.00014268,2]
[368666077,1751284238115,-548.44,0.00014268,2]
[368666079,1751284238124,-545.8,0.00014268,2]
[368666081,1751284238134,-880.63,0.00014268,2]
[368666084,1751284238144,-151.0,0.00014268,2]
[368666085,1751284238153,-6261.39255528,0.00014268,2]
[368666088,1751284238162,-296.73197465,0.00014269,2]
[368666090,1751284238172,-155.195,0.00014269,2]
[368666091,1751284238181,-964.57,0.00014269,2]
[368666092,1751284238190,-655.5,0.00014269,2]
[368666094,1751284238200,-522.03169514,0.00014269,2]
[368666096,1751284238209,-873.55,0.00014269,2]
[368666098,1751284238219,-492.86962583,0.00014269,2]
[368666100,1751284238228,-490.0,0.00014269,2]
[368666102,1751284238239,-490.0,0.00014269,2]
[368666104,1751284238248,-490.0,0.00014269,2]
[368666106,1751284238257,-490.0,0.00014269,2]
[368666107,1751284238267,-880.08,0.00014269,2]
[368666109,1751284238276,-490.0,0.00014269,2]
[368666111,1751284238285,-546.74,0.00014269,2]
[368666113,1751284238295,-490.0,0.00014269,2]
[368666115,1751284238304,-490.0,0.00014269,2]
[368666118,1751284238313,-490.0,0.00014269,2]
[368666121,1751284238322,-490.0,0.00014269,2]
[368666123,1751284238332,-490.0,0.00014269,2]
[368666125,1751284238342,-490.0,0.00014269,2]
[368666127,1751284238351,-490.0,0.00014269,2]
[368666129,1751284238360,-823.64,0.00014269,2]
[368666131,1751284238370,-490.0,0.00014269,2]
[368666133,1751284238379,-1449.07,0.00014269,2]
[368666135,1751284238389,-829.91,0.00014269,2]
[368666137,1751284238398,-686.75,0.00014269,2]
[368666139,1751284238409,-490.0,0.00014269,2]
[368666141,1751284238418,-217.13348563,0.00014269,2]
[368666143,1751284238427,-759.91,0.00014269,2]
[368666145,1751284238436,-490.0,0.00014269,2]
[368666147,1751284238445,-490.0,0.00014269,2]
[368666149,1751284238455,-490.0,0.00014269,2]
[368666150,1751284238465,-533.23,0.00014269,2]
[368666152,1751284238474,-490.0,0.00014269,2]
[368666154,1751284238483,-490.0,0.00014269,2]
[368666156,1751284238492,-490.0,0.00014269,2]
[368666158,1751284238501,-490.0,0.00014269,2]
[368666160,1751284238510,-490.0,0.00014269,2]
[368666162,1751284238520,-490.0,0.00014269,2]
[368666164,1751284238529,-151.0,0.00014269,2]
[368666166,1751284238538,-151.0,0.00014269,2]
[368666168,1751284238547,-4671.93,0.00014269,2]
[368666170,1751284238556,-490.0,0.00014269,2]
[368666172,1751284238565,-490.0,0.00014269,2]
[368666173,1751284238574,-674.9,0.00014269,2]
[368666175,1751284238584,-490.0,0.00014269,2]
[368666177,1751284238594,-596.27,0.00014269,2]
[368666179,1751284238603,-8487.79,0.00014269,2]
[368666181,1751284238612,-1107.78,0.00014269,2]
[368666183,1751284238621,-490.0,0.00014269,2]
[368666185,1751284238631,-490.0,0.00014269,2]
[368666186,1751284238640,-3260.173293,0.00014269,2]
[368666187,1751284238649,-1568.24,0.00014269,2]
[368666188,1751284238659,-841.23,0.00014269,2]
[368666189,1751284238668,-876.13,0.00014269,2]
[368666190,1751284238677,-151.0,0.00014269,2]
[368666191,1751284238685,-490.0,0.00014269,2]
[368666192,1751284238694,-1538.77,0.00014269,2]
[368666193,1751284238703,-490.0,0.00014269,2]
[368666194,1751284238712,-490.0,0.00014269,2]
[368666195,1751284238720,-490.0,0.00014269,2]
[368666196,1751284238729,-3353.607059,0.00014269,2]
[368666197,1751284238738,-490.0,0.00014269,2]
[368666198,1751284238747,-490.0,0.00014269,2]
[368666199,1751284238756,-816.75,0.00014269,2]
[368666200,1751284238765,-532.27,0.00014269,2]
[368666201,1751284238774,-1122.12,0.00014269,2]
[368666202,1751284238783,-1027.62,0.00014269,2]
[368666203,1751284238792,-490.0,0.00014269,2]
[368666205,1751284238801,-490.0,0.00014269,2]
[368666206,1751284238810,-2949.971998,0.00014269,2]
[368666208,1751284238819,-490.0,0.00014269,2]
[368666210,1751284238828,-490.0,0.00014269,2]
[368666212,1751284238839,-157.60867,0.00014269,2]
[368666214,1751284238848,-1868.63,0.00014269,2]
[368666216,1751284238858,-759.44,0.00014269,2]
[368666218,1751284238867,-1710.44,0.00014269,2]
[368666220,1751284238877,-498.36,0.00014269,2]
[368666222,1751284238887,-154.8076,0.00014269,2]
[368666224,1751284238896,-490.0,0.00014269,2]
[368666226,1751284238906,-368.90963,0.00014269,2]
[368666228,1751284238915,-490.0,0.00014269,2]
[368666230,1751284238924,-490.0,0.00014269,2]
[368666232,1751284238933,-151.0,0.00014269,2]
[368666234,1751284238942,-7441.05,0.00014269,2]
[368666236,1751284238951,-151.0,0.00014269,2]
[368666238,1751284238961,-151.0,0.00014269,2]
[368666240,1751284238970,-490.0,0.00014269,2]
[368666242,1751284238979,-824.62,0.00014269,2]